[Event "European Women-ch 2023"]
[Site "Petrovac"]
[Date "2023.03.27"]
[Round "9.7"]
[White "Mammadzada, Gunay"]
[Black "Zaksaite, Salomeja"]
[Result "1-0"]
[ECO "B33"]
[WhiteElo "2472"]
[BlackElo "2187"]
[Annotator "TA"]
[PlyCount "97"]
[EventDate "2023.03.15"]
[EventType "swiss"]
[EventCountry "MNE"]
[SourceTitle "playchess.com"]
[Source "ChessBase"]
[SourceQuality "1"]
[TimeControl "40/5400+30:1800+30"]

{[%evp 24,97,14,3,19,13,14,0,22,13,20,52,58,62,60,60,59,52,45,17,30,8,10,0,0,0,0,0,0,0,0,0,82,95,133,137,137,134,147,149,191,124,152,156,142,61,66,89,112,58,73,38,52,30,29,33,33,31,35,0,47,12,13,8,87,92,654,597,566,512,12846,12847,12847,12847,12848,12848]} 1. e4 {[%emt 0:00:45]} c5 {[%emt 0:00:17]} 2. Nf3 {[%emt 0:00:05]} Nc6 {[%emt 0:00:12]} 3. d4 {[%emt 0:00:32]} cxd4 {[%emt 0:00:05]} 4. Nxd4 {[%emt 0:00:03]} Nf6 {[%emt 0:00:05]} 5. Nc3 {[%emt 0:00:04]} e5 {[%emt 0:00:06]} 6. Ndb5 {[%emt 0:00:06]} d6 {[%emt 0:00:05]} 7. Bg5 {[%emt 0:00:20]} a6 {[%emt 0:00:14]} 8. Na3 {[%emt 0:00:05]} b5 {[%emt 0:00:07]} 9. Nd5 {[%emt 0:00:05]} Be7 {[%emt 0:00:04][%cal Bf8e7,Be7f6,Bf6g5][%mdl 32]} 10. Bxf6 {[%emt 0:00:04]} Bxf6 {[%emt 0:00:05]} 11. c3 {[%emt 0:00:06]} Rb8 {[%emt 0:00:21]} 12. Nc2 {[%emt 0:00:10]} Bg5 {[%emt 0:00:35]} 13. a3 {[%emt 0:05:50]} O-O {[%emt 0:00:53] [#] B33: Sicilian: Pelikan and Sveshnikov Variations.} 14. h4 $1 {[%emt 0:00:29]} Bh6 {[%emt 0:05:12]} 15. g4 {[%emt 0:02:39][%cal Bg2g4,Bg4g5][%mdl 32]} Bf4 {[%emt 0:00:05] The position is equal.} 16. Qf3 {[%emt 0:00:47]} Be6 {[%emt 0:00:05] 16...a5 gains popularity.} 17. Nxf4 {[%emt 0:01:33] A dynamic duo of knights.} Qf6 {[%emt 0:11:57][%mdl 64] Pin} 18. g5 {[%emt 0:00:30]} Qxf4 {[%emt 0:00:04]} 19. Qxf4 {[%emt 0:00:05]} exf4 {[%emt 0:00:03]} 20. Nb4 {[%emt 0:00:23][%cal Bc2b4,Bb4d3,Bd3f4,Bf4e2,Be2d4,Bd4c6,Bc6e7,Be7f5][%mdl 32]} Rb6 {[%emt 0:40:24] [#]} 21. Nd3 $146 {[%emt 0:37:54]} ({Predecessor:} 21. Nxc6 Rxc6 22. Rd1 Re8 23. Rd4 h6 24. Kd2 Kf8 25. gxh6 gxh6 26. Be2 Ke7 27. h5 {1-0 Piorun,K (2640)-Mamedov,R (2656) Wch Rapid Warsaw 2021 (13)}) 21... d5 {[%emt 0:04:46]} 22. Bg2 {[%emt 0:08:36]} d4 {[%emt 0:02:28]} 23. Nxf4 {[%emt 0:02:04]} dxc3 {[%emt 0:00:06]} 24. bxc3 {[%emt 0:00:03]} Ne5 {[%emt 0:00:25]} 25. O-O {[%emt 0:04:23]} Rc6 {[%emt 0:06:18]} 26. Ne2 {[%emt 0:05:49]} Bc4 {[%emt 0:00:24]} 27. Nd4 {[%emt 0:00:09]} Bxf1 {[%emt 0:00:33]} (27... Rc7 $11 28. Rfe1 Ng6) 28. Nxc6 $16 {[%emt 0:00:07]} Bxg2 {[%emt 0:00:05]} 29. Ne7+ {[%emt 0:00:12]} (29. Nxe5 $6 Bxe4 30. Re1 Bf5 $11) 29... Kh8 {[%emt 0:00:04]} 30. Kxg2 {[%emt 0:00:04][%mdl 4096] Endgame KRN-KRN} Ng6 {[%emt 0:18:28]} 31. Nf5 {[%emt 0:04:58]} Rc8 {[%emt 0:00:05]} 32. Rd1 {[%emt 0:04:26]} (32. a4 $18) 32... h6 {[%emt 0:03:01]} 33. gxh6 {[%emt 0:10:14]} gxh6 {[%emt 0:00:08] [#]} 34. Rd6 {[%emt 0:09:22]} ({Reject} 34. Nxh6 $6 Rxc3 35. Nxf7+ Kg7 $11) ({Better is} 34. h5 $1 $16 {[%cal Rh5g6]} Nf4+ 35. Kf3) 34... Rxc3 {[%emt 0:02:19]} 35. Rxa6 {[%emt 0:00:02]} h5 {[%emt 0:04:36]} 36. Ra7 {[%emt 0:00:43]} (36. f3 $16) 36... Rd3 {[%emt 0:02:08]} 37. Rxf7 {[%emt 0:02:47] And now f3 would win.} Rxa3 {[%emt 0:00:05]} 38. Rb7 {[%emt 0:00:14]} Nf4+ {[%emt 0:00:30]} 39. Kh2 {[%emt 0:02:31]} Nd3 {[%emt 0:01:08]} 40. Rb8+ {[%emt 0:00:00]} ({Don't do} 40. Rxb5 $6 Nxf2 41. Nd6 Ra4 $16) 40... Kh7 {[%emt 0:00:00]} 41. Rb7+ {[%emt 0:04:58]} ({Don't take} 41. Rxb5 $6 Nxf2 42. Nd6 Kh6 $16) 41... Kh8 {[%emt 0:16:08]} 42. Rxb5 {[%emt 0:03:39] Strongly threatening f3.} Nxf2 {[%emt 0:00:05]} 43. Nd6 {[%emt 0:06:14]} Ng4+ {[%emt 0:12:53]} (43... Ra4 $1 $11 {keeps the balance.}) 44. Kg2 {[%emt 0:00:07] White is more active.} Nf6 {[%emt 0:00:12][%mdl 8192] This move loses the game for Black.} (44... Ne3+ $16 45. Kf2 Ng4+ 46. Kg2 Ne3+ 47. Kg1 Kg7 48. Rxh5 Kf6) 45. e5 $18 {[%emt 0:01:31][%cal Be4e5,Be5e6][%mdl 32] White is clearly winning.} Ng8 {[%emt 0:03:43] [#]} 46. e6 $1 {[%emt 0:00:20]} Re3 {[%emt 0:01:00]} (46... Ra7 $142 47. Rxh5+ Kg7 48. Rg5+ Kf8 49. Rf5+ Kg7) 47. Rxh5+ {[%emt 0:00:22]} Kg7 {[%emt 0:00:04]} 48. Nf5+ {[%emt 0:00:04]} Kg6 {[%emt 0:00:09]} 49. Rg5+ {[%emt 0:00:01] Weighted Error Value: White=0.12 (very precise) /Black=0.35} 1-0

[Event "European Women-ch 2023"]
[Site "Petrovac"]
[Date "2023.03.27"]
[Round "9.7"]
[White "Danielian, Elina"]
[Black "Bivol, Alina"]
[Result "1/2-1/2"]
[ECO "D35"]
[WhiteElo "2431"]
[BlackElo "2365"]
[Annotator "TA"]
[PlyCount "223"]
[EventDate "2023.03.15"]
[EventType "swiss"]
[EventCountry "MNE"]
[SourceTitle "playchess.com"]
[Source "ChessBase"]
[SourceQuality "1"]
[TimeControl "40/5400+30:1800+30"]

{[%evp 24,223,52,46,45,28,32,23,16,0,0,0,0,0,0,0,0,0,2,0,0,0,0,0,0,-5,-5,-5,-6,-4,0,0,23,33,57,0,89,6,66,69,107,107,112,0,88,91,90,74,74,78,80,79,101,96,187,162,174,184,181,173,167,157,151,139,137,130,135,136,136,136,136,136,136,136,131,131,129,126,131,125,129,123,116,113,106,80,213,207,201,185,329,286,286,286,286,286,547,547,545,527,504,501,501,303,416,252,260,0,232,79,89,71,71,71,71,71,71,0,71,45,45,45,45,45,252,243,228,45,45,45,45,45,45,0,45,45,45,45,45,45,72,75,1574,1322,12798,12844,12824,12513,11379,10853,10120,9897,9897,9679,9319,8620,8225,7923,7876,7756,7749,7734,7734,7727,8043,8043,8030,7955,7909,7892,7830,7734,7740,7734,7720,8,8,8,8,8,8,8,8,8,8,8,8,8,8,8,8,8,8,8,8,8,8,8,8,0,0,0]} 1. d4 {[%emt 0:00:05]} d5 {[%emt 0:00:05]} 2. c4 {[%emt 0:00:06]} e6 {[%emt 0:00:04]} 3. Nc3 {[%emt 0:00:16]} Nf6 {[%emt 0:00:47]} 4. cxd5 {[%emt 0:00:33]} exd5 {[%emt 0:00:09]} 5. Bg5 {[%emt 0:00:05]} Be7 {[%emt 0:00:04]} 6. e3 {[%emt 0:00:09]} O-O {[%emt 0:00:11]} 7. Bd3 {[%emt 0:00:19]} c6 {[%emt 0:00:55]} 8. Nge2 {[%emt 0:07:58]} h6 {[%emt 0:01:18]} 9. Bh4 {[%emt 0:00:10]} Ne8 {[%emt 0:02:52]} 10. Bg3 {[%emt 0:01:15]} Nd6 {[%emt 0:00:16]} 11. Qc2 {[%emt 0:03:51]} Nd7 {[%emt 0:05:05]} 12. O-O {[%emt 0:01:12]} Nf6 {[%emt 0:01:07]} 13. f3 {[%emt 0:04:55]} Nh5 {[%emt 0:10:13]} 14. Bf2 {[%emt 0:01:26]} (14. Be5 {seems wilder.} Nc4 15. Bxc4 dxc4 16. Rad1) 14... f5 $1 {[%emt 0:00:56]} 15. Rae1 {[%emt 0:05:11]} Bd7 {[%emt 0:02:17]} 16. e4 {[%emt 0:06:09]} (16. Na4 {simplifies} b6 17. Ng3 Nxg3 18. Bxg3 Be6 19. b3) 16... fxe4 {[%emt 0:03:33]} 17. fxe4 {[%emt 0:00:05]} dxe4 {[%emt 0:02:37]} 18. Qb3+ {[%emt 0:12:23]} Kh8 {[%emt 0:01:15]} 19. Nxe4 {[%emt 0:00:07]} Nxe4 {[%emt 0:08:13]} 20. Bxe4 {[%emt 0:00:04]} Bd6 {[%emt 0:00:19]} 21. Bf3 {[%emt 0:04:27]} Nf6 {[%emt 0:01:10]} 22. Bg3 {[%emt 0:12:03]} Bxg3 {[%emt 0:01:11]} 23. Nxg3 {[%emt 0:02:54]} Bg4 {[%emt 0:12:28]} 24. Qxb7 {[%emt 0:17:40]} Qxd4+ {[%emt 0:02:01]} 25. Kh1 {[%emt 0:00:04]} Rab8 {[%emt 0:03:58]} 26. Qxc6 {[%emt 0:05:18]} Rfc8 {[%emt 0:10:08]} 27. Qa6 {[%emt 0:00:42]} Rc2 {[%emt 0:01:32]} 28. b3 {[%emt 0:04:14]} Rbc8 {[%emt 0:18:13]} 29. h3 {[%emt 0:08:33]} (29. Bxg4 $14 Nxg4 30. h3) 29... Bd7 {[%emt 0:02:03]} (29... Bxh3 $11 {keeps the balance.} 30. Ne4 (30. gxh3 Qh4 $15) 30... Nxe4 31. Bxe4 (31. gxh3 $2 Ng3#) 31... Bxg2+ 32. Bxg2 Qg4) 30. Re2 {[%emt 0:02:41]} (30. Ne4 $1 $16 {[%cal Re4f6]}) 30... Rc1 {[%emt 0:04:52]} (30... R2c5 $1 $11) 31. Qa5 $1 $14 {[%emt 0:00:20]} R1c3 {[%emt 0:03:14]} 32. Qe5 {[%emt 0:00:28]} (32. Ne4 {is more complex.} Rc1 33. Rxc1 Rxc1+ 34. Kh2) 32... Qb4 {[%emt 0:01:05]} 33. Qe7 {[%emt 0:00:40]} (33. Rd1 $16) 33... a5 {[%emt 0:00:22]} (33... Qf4 $11 34. Qe5 Qxe5 35. Rxe5 Kg8) 34. Qxb4 $16 {[%emt 0:00:20]} (34. Rd1 {with more complications.} Qb8 35. Ne4 Rd3 36. Rde1) 34... axb4 {[%emt 0:00:02]} 35. Rd2 {[%emt 0:00:15]} Bc6 {[%emt 0:01:29]} 36. Bxc6 {[%emt 0:00:35]} R8xc6 {[%emt 0:00:04]} 37. Kh2 {[%emt 0:00:23]} Ra6 {[%emt 0:01:12]} 38. Rf4 {[%emt 0:00:29]} Rxg3 {[%emt 0:00:03]} (38... Rb6 $16 {might work better.}) 39. Kxg3 $18 {[%emt 0:00:07]} ({Not} 39. Rd8+ Kh7 40. Kxg3 Nh5+ 41. Kg4 Nxf4 42. Kxf4 Rxa2 $11) 39... Nh5+ {[%emt 0:00:03]} 40. Kf3 {[%emt 0:00:00]} Nxf4 {[%emt 0:00:00]} 41. Kxf4 {[%emt 0:00:09]} Re6 {[%emt 0:04:37]} 42. Kf3 {[%emt 0:03:07]} Kh7 {[%emt 0:00:35]} 43. Re2 {[%emt 0:00:27]} Rd6 {[%emt 0:01:44]} 44. Ke3 {[%emt 0:02:25]} Kg6 {[%emt 0:00:39]} 45. Rc2 {[%emt 0:05:38]} Kf6 {[%emt 0:02:59]} 46. Rc4 {[%emt 0:00:25]} Ra6 {[%emt 0:00:13]} 47. Rxb4 {[%emt 0:00:16]} Rxa2 {[%emt 0:00:05]} 48. Rf4+ {[%emt 0:00:28]} Ke5 {[%emt 0:01:18]} 49. Rf2 $1 {[%emt 0:00:12]} Ra3 {[%emt 0:04:27]} 50. Rb2 {[%emt 0:00:04]} Kd5 {[%emt 0:06:06]} 51. Kd3 {[%emt 0:00:09]} Kc5 {[%emt 0:01:05]} 52. Kc3 {[%emt 0:00:06]} Ra1 {[%emt 0:00:11]} 53. Rf2 {[%emt 0:03:44]} Rc1+ {[%emt 0:01:30]} 54. Kd3 {[%emt 0:00:16]} Kb4 {[%emt 0:08:10]} (54... Rb1 $16 {was necessary.}) 55. Rf7 $18 {[%emt 0:03:37]} Rc3+ {[%emt 0:00:00]} 56. Ke2 $1 {[%emt 0:00:10]} g5 {[%emt 0:01:57]} (56... Rg3 {is a better defense.}) 57. Rb7+ {[%emt 0:01:58]} Ka5 {[%emt 0:00:09]} 58. Rh7 {[%emt 0:01:14]} Rc6 {[%emt 0:01:28]} 59. Kf3 {[%emt 0:00:24]} Kb4 $2 {[%emt 0:02:01]} (59... Re6 60. Rb7 Ka6) 60. Kg4 $18 {[%emt 0:02:26]} Rc2 {[%emt 0:00:31]} 61. g3 {[%emt 0:00:45]} ({Less strong is} 61. Rxh6 Rxg2+ 62. Kf3 Rb2 $14) 61... Rc6 {[%emt 0:03:46]} 62. Rb7+ {[%emt 0:03:42]} Ka5 {[%emt 0:00:00]} 63. Rb8 {[%emt 0:03:17]} Rd6 {[%emt 0:00:00]} 64. Rg8 {[%emt 0:07:59]} Kb4 {[%emt 0:00:00]} 65. Rb8+ $2 {[%emt 0:00:28]} (65. h4 $18) 65... Kc5 $2 {[%emt 0:00:20]} (65... Ka5 $1 $11 {and Black is okay.}) 66. Re8 $2 {[%emt 0:00:28]} (66. Rc8+ $18 {is more deadly.} Kb6 67. Rh8) 66... Rd4+ $16 {[%emt 0:00:45]} 67. Kf3 {[%emt 0:00:11]} Rb4 {[%emt 0:00:31]} 68. Re3 $1 {[%emt 0:00:58]} Kd5 {[%emt 0:00:10]} 69. g4 {[%emt 0:00:17]} Rf4+ {[%emt 0:01:09]} 70. Kg3 {[%emt 0:00:04]} (70. Ke2 $16) 70... Rb4 {[%emt 0:00:18]} (70... Rf1 $11 {remains equal.}) 71. Rf3 {[%emt 0:00:15]} Ke4 {[%emt 0:00:49]} 72. Kf2 {[%emt 0:00:26]} Rb6 {[%emt 0:00:18]} 73. Ke2 {[%emt 0:00:47]} h5 $2 {[%emt 0:00:44]} (73... Ra6 $14 74. Re3+ Kd4) 74. gxh5 $18 {[%emt 0:00:23]} Rh6 {[%emt 0:00:03] [#]} 75. Rd3 $2 {[%emt 0:01:22]} ({White has to play} 75. Re3+ $1 $18 Kd4 76. Rg3 Rxh5 77. Kf3) 75... Rxh5 $14 {[%emt 0:00:13]} 76. Kd2 {[%emt 0:00:21]} Rh8 {[%emt 0:00:13]} 77. Rg3 {[%emt 0:00:37]} Kf4 {[%emt 0:00:07]} 78. Rd3 {[%emt 0:01:22]} Rb8 {[%emt 0:00:42]} 79. Kc2 {[%emt 0:00:00]} Rc8+ {[%emt 0:00:47]} 80. Kb2 {[%emt 0:00:11]} Rb8 {[%emt 0:00:07]} 81. Rc3 {[%emt 0:00:24]} Rb7 {[%emt 0:00:47]} 82. Rc4+ {[%emt 0:00:15]} Kg3 $2 {[%emt 0:00:59][%mdl 8192] [#]} (82... Kf5 $16) 83. Rg4+ $1 $18 {[%emt 0:00:04]} Kxh3 {[%emt 0:00:05]} 84. Rxg5 {[%emt 0:00:03]} Kh4 {[%emt 0:00:41]} 85. Rg8 {[%emt 0:00:19]} Kh5 {[%emt 0:00:20]} 86. Kc3 {[%emt 0:01:00]} Rc7+ {[%emt 0:00:22]} 87. Kd4 {[%emt 0:00:18]} Rb7 {[%emt 0:00:16]} 88. Rg3 {[%emt 0:00:57]} Rb8 {[%emt 0:00:08]} 89. Kc5 {[%emt 0:00:43]} Rc8+ {[%emt 0:00:02]} 90. Kb6 {[%emt 0:01:06]} Rb8+ {[%emt 0:00:03]} 91. Kc7 {[%emt 0:00:16]} Rb4 {[%emt 0:00:08]} 92. Kc6 {[%emt 0:00:25]} Rb8 {[%emt 0:00:08]} 93. Kd5 {[%emt 0:00:15]} Rd8+ {[%emt 0:01:13]} 94. Kc4 {[%emt 0:00:05]} Rc8+ {[%emt 0:00:04]} 95. Kd3 {[%emt 0:00:06]} Rb8 {[%emt 0:00:16]} 96. Kc2 {[%emt 0:00:02]} Rc8+ {[%emt 0:00:49]} 97. Rc3 {[%emt 0:00:07]} Rb8 {[%emt 0:00:03]} 98. Rc4 {[%emt 0:00:15]} Kg6 {[%emt 0:00:17]} 99. b4 $2 {[%emt 0:00:11]} (99. Rf4 $18 Kg5 100. Rf2) 99... Kf6 {[%emt 0:00:25]} 100. Kb3 {[%emt 0:00:19]} Ke6 $1 {[%emt 0:00:20]} 101. Rd4 {[%emt 0:01:09]} (101. Ka4 $5 Kd5 $8 102. Rg4 $11) 101... Ke5 {[%emt 0:00:42]} 102. Kc3 {[%emt 0:00:39]} (102. Rd7 $5 Ke6 $8 103. Rd4 $11) 102... Rc8+ {[%emt 0:00:38]} 103. Rc4 {[%emt 0:00:50]} Rb8 {[%emt 0:00:08]} 104. Rc5+ {[%emt 0:00:53]} (104. Rc6 $5 Kd5 $8 105. Rf6 $11) 104... Kd6 {[%emt 0:00:05]} 105. Kc4 {[%emt 0:00:04]} Rh8 {[%emt 0:01:01]} 106. Rg5 {[%emt 0:00:33]} (106. Kb5 $5 Rb8+ $8 107. Kc4 $11) 106... Kc6 {[%emt 0:00:44]} 107. Rg6+ {[%emt 0:00:06]} Kb7 {[%emt 0:00:11]} 108. Kb5 {[%emt 0:00:05]} Rh5+ {[%emt 0:00:06]} 109. Ka4 {[%emt 0:00:04]} Rf5 {[%emt 0:01:10]} 110. Rh6 {[%emt 0:00:13]} Rg5 {[%emt 0:00:13]} 111. b5 {[%emt 0:00:18]} Rg1 {[%emt 0:00:18]} 112. Kb4 {[%emt 0:00:05]} 1/2-1/2

[Event "European Women-ch 2023"]
[Site "Petrovac"]
[Date "2023.03.27"]
[Round "9.7"]
[White "Hajiyeva, Laman"]
[Black "Ter-Avetisjana, Agnesa Stepania"]
[Result "1/2-1/2"]
[ECO "B31"]
[WhiteElo "2118"]
[BlackElo "1974"]
[Annotator "TA"]
[PlyCount "57"]
[EventDate "2023.03.15"]
[EventType "swiss"]
[EventCountry "MNE"]
[SourceTitle "playchess.com"]
[Source "ChessBase"]
[SourceQuality "1"]
[TimeControl "40/5400+30:1800+30"]

{[%evp 23,57,30,37,34,27,33,36,12,16,13,14,5,21,-13,0,-48,-48,-48,-48,-48,-48,-47,-42,-64,-50,-64,-64,-68,-58,-56,-60,-67,-40,-35,-35,-35]} 1. e4 {[%emt 0:00:20]} c5 {[%emt 0:01:01]} 2. Nf3 {[%emt 0:00:18]} Nc6 {[%emt 0:02:22]} 3. Bb5 {[%emt 0:00:05]} g6 {[%emt 0:01:38]} 4. Bxc6 {[%emt 0:00:27]} dxc6 {[%emt 0:00:23]} 5. d3 {[%emt 0:00:14]} Bg7 {[%emt 0:00:38]} 6. h3 {[%emt 0:00:20]} Nf6 {[%emt 0:01:00]} 7. Nc3 {[%emt 0:00:31]} O-O {[%emt 0:00:20]} 8. O-O {[%emt 0:03:32]} Qc7 {[%emt 0:00:56]} 9. Be3 {[%emt 0:00:42]} b6 {[%emt 0:00:15]} 10. Qd2 {[%emt 0:04:10]} e5 {[%emt 0:01:02]} 11. Bh6 {[%emt 0:02:16]} Re8 {[%emt 0:00:50]} 12. Bxg7 {[%emt 0:06:04]} Kxg7 {[%emt 0:00:01]} 13. b3 {[%emt 0:11:51] [#] B31: Sicilian: 2...Nc6 3 Bb5 g6.} Nh5 $146 {[%emt 0:02:50]} ({Predecessor:} 13... h6 14. Ne2 Be6 15. Qc3 Nd7 16. Nh2 Kh7 17. f4 exf4 18. Nxf4 Qe5 19. Qd2 Qd4+ 20. Kh1 Ne5 {1-0 Kovalevskaya,E (2437)-Troyke,D (2105) BL 1617 (Women) 2016 (7.2)}) 14. Ne2 {[%emt 0:04:04][%cal Bc3e2,Be2g1,Bg1f3][%mdl 32]} h6 {[%emt 0:06:09]} 15. Kh1 {[%emt 0:17:43] White is slightly better.} Be6 {[%emt 0:03:27]} 16. Qc3 {[%emt 0:05:07]} f6 {[%emt 0:02:44]} 17. Kh2 {[%emt 0:05:15]} Nf4 {[%emt 0:05:57]} 18. Neg1 {[%emt 0:00:41]} g5 {[%emt 0:12:33]} 19. g3 {[%emt 0:04:04]} (19. Qe1 $11) 19... Ng6 $15 {[%emt 0:00:02] Black is slightly better.} 20. Ne1 {[%emt 0:00:20][%cal Bf3e1,Be1g2,Bg2e3,Be3f5][%mdl 32]} h5 {[%emt 0:03:46][%cal Bh6h5,Bh5h4][%mdl 32]} 21. Ng2 {[%emt 0:03:50]} h4 {[%emt 0:03:52]} 22. g4 {[%emt 0:00:03]} Qd6 {[%emt 0:02:57]} 23. Nf3 {[%emt 0:05:04]} Red8 {[%emt 0:03:56]} (23... Kf7 {is interesting.} 24. Rfe1 a5 25. Ne3 Ke7) 24. Rae1 {[%emt 0:04:17]} a5 {[%emt 0:02:46]} 25. Ne3 {[%emt 0:00:34]} Kh7 {[%emt 0:04:28]} 26. Nf5 {[%emt 0:00:51]} Qc7 {[%emt 0:00:05]} 27. a4 {[%emt 0:01:22]} Nf4 {[%emt 0:00:29]} 28. Rg1 {[%emt 0:02:55]} Rd7 {[%emt 0:04:19]} 29. Re3 {[%emt 0:00:16] Weighted Error Value: White=0.10 (very precise) /Black=0.06 (flawless)} 1/2-1/2

[Event "European Women-ch 2023"]
[Site "Petrovac"]
[Date "2023.03.27"]
[Round "9.8"]
[White "Wagner, Dinara"]
[Black "Tsolakidou, Stavroula"]
[Result "0-1"]
[ECO "E94"]
[WhiteElo "2411"]
[BlackElo "2358"]
[Annotator "TA"]
[PlyCount "116"]
[EventDate "2023.03.15"]
[EventType "swiss"]
[EventCountry "MNE"]
[SourceTitle "playchess.com"]
[Source "ChessBase"]
[SourceQuality "1"]
[TimeControl "40/5400+30:1800+30"]

{[%evp 21,116,24,16,10,4,16,12,0,0,0,0,0,0,0,0,0,0,-37,-35,-26,-14,-29,-27,-26,-12,-32,-6,-20,-11,-20,-22,-22,0,0,0,0,0,0,0,-72,-87,-133,-75,-68,-78,-118,-130,-187,-191,-257,-271,-257,-271,-444,-69,-60,-58,-58,-48,-284,-263,-257,-250,-263,-275,-323,-317,-339,-337,-353,-349,-412,-374,-374,-366,-356,-365,-368,-360,-335,-352,-453,-451,-569,-518,-1113,-1107,-1064,-1016,-1034,-1017,-2583,-2083,-5665,-5413,-2263,-1919]} 1. d4 {[%emt 0:00:04]} Nf6 {[%emt 0:01:07]} 2. c4 {[%emt 0:00:12]} g6 {[%emt 0:00:08]} 3. Nc3 {[%emt 0:00:10]} Bg7 {[%emt 0:00:13]} 4. e4 {[%emt 0:00:12]} d6 {[%emt 0:00:08]} 5. Nf3 {[%emt 0:00:06]} O-O {[%emt 0:00:15]} 6. Be3 {[%emt 0:00:15]} e5 {[%emt 0:03:31]} 7. dxe5 {[%emt 0:00:15]} dxe5 {[%emt 0:00:32]} 8. Qc2 {[%emt 0:00:11]} Nbd7 {[%emt 0:08:19]} 9. Rd1 {[%emt 0:00:26]} Re8 {[%emt 0:04:45]} 10. Be2 {[%emt 0:00:38]} c6 {[%emt 0:00:36]} 11. O-O {[%emt 0:00:39]} Qe7 {[%emt 0:00:26]} 12. a3 {[%emt 0:05:13] E94: King's Indian: Classical: 6 Be2 e5 7 0-0: Various Black 7th moves.} Nh5 {[%emt 0:06:44]} 13. g3 {[%emt 0:03:34]} Nf8 {[%emt 0:05:27]} 14. Rfe1 {[%emt 0:11:22] The position is equal.} Bg4 {[%emt 0:02:57] [#]} 15. Kg2 $146 {[%emt 0:14:46]} ({Predecessor:} 15. Ng5 Bxe2 16. Rxe2 Ne6 17. Nf3 Qf6 18. Kg2 g5 19. Red2 Nhf4+ 20. Bxf4 gxf4 21. Ne2 {½-½ Hoehne,E (2085)-Barth,H (1948) GER MS-117 email 2010}) 15... Ne6 {[%emt 0:06:40]} 16. h3 {[%emt 0:05:06]} Bxf3+ {[%emt 0:00:06]} 17. Bxf3 {[%emt 0:00:02]} Nf6 {[%emt 0:00:08][%cal Bh5f6,Bf6d7,Bd7f8,Bf8e6,Be6f4][%mdl 32]} 18. b4 {[%emt 0:05:36]} h5 {[%emt 0:04:11][%cal Bh7h5,Bh5h4][%mdl 32]} 19. Na4 {[%emt 0:18:02]} Nd7 {[%emt 0:02:16] Dodges Nc5} 20. Nc3 {[%emt 0:05:52]} Rad8 {[%emt 0:09:12]} 21. c5 {[%emt 0:09:10]} Nd4 {[%emt 0:07:40]} 22. Qa2 {[%emt 0:02:36]} h4 {[%emt 0:02:01]} 23. Be2 {[%emt 0:01:51]} Nf8 {[%emt 0:15:13] Excellent horsemanship.} 24. Bc4 {[%emt 0:00:22]} Nfe6 {[%emt 0:00:38]} 25. Bxd4 {[%emt 0:06:04]} exd4 {[%emt 0:01:28]} 26. Ne2 {[%emt 0:00:17]} hxg3 {[%emt 0:03:31]} (26... Ng5 $5 {[%cal Re7e4]} 27. Nf4 Qf6 $11) 27. fxg3 {[%emt 0:00:04]} Qg5 {[%emt 0:03:48]} 28. Ng1 {[%emt 0:03:04]} Be5 {[%emt 0:09:13]} 29. Qf2 {[%emt 0:00:20]} Nf4+ {[%emt 0:00:04]} 30. Kh2 {[%emt 0:00:55] [#]} (30. Kf1 $11 {remains equal.} Ne6 31. Kg2) 30... Nh5 $1 $17 {[%emt 0:00:18]} (30... Ne6 31. Rf1 Rd7 32. Ne2 $11) 31. Rd3 {[%emt 0:00:54]} (31. Bxf7+ $2 Kg7 32. Rd3 Rf8 $19) ({Better is} 31. Ne2 Re7 32. Qf3) 31... Re7 {[%emt 0:00:57]} (31... Qxg3+ $142 32. Rxg3 Bxg3+ 33. Qxg3 Nxg3 34. Kxg3 d3) 32. Ne2 {[%emt 0:01:28][%cal Oh2g2]} Kg7 {[%emt 0:00:41]} 33. Rf1 {[%emt 0:01:03][%cal Od3f3]} Nf6 {[%emt 0:00:41] Chess con chili.} 34. Qf3 {[%emt 0:02:14]} (34. Qg2 $17) 34... Rh8 $19 {[%emt 0:00:05]} 35. Kg2 {[%emt 0:00:37] [#]} (35. Nf4 {keeps fighting.}) 35... Rh4 $1 {[%emt 0:00:10]} ({Weaker is} 35... Qh6 36. h4 $11) 36. Nxd4 {[%emt 0:02:31]} Rxe4 {[%emt 0:00:36]} (36... Nxe4 37. Qxf7+ Rxf7 38. Ne6+ Kh6 39. Nxg5 Rxf1 40. gxh4 Rf2+ 41. Kh1 Nxg5 42. hxg5+ Kxg5 43. Kg1 $11) 37. Qf2 {[%emt 0:02:00]} (37. Rfd1) 37... Bxd4 $2 {[%emt 0:03:00]} (37... Qh5 $19 38. Qg1 Re8) 38. Rxd4 $15 {[%emt 0:00:12]} Rxd4 {[%emt 0:00:03]} 39. Qxd4 {[%emt 0:00:08]} Re4 $1 {[%emt 0:00:16][%cal Be7e4,Be4d4,Bd4d2,Bd2d8,Bd8h8,Bh8e8,Be8e3][%mdl 32] Repels Rf4} 40. h4 $2 {[%emt 0:00:00] Now White is beyond hope.} (40. Qd3 $1 $15) 40... Qxg3+ $19 {[%emt 0:00:00]} ({And not} 40... Rxd4 41. hxg5 Nd5 42. Bxd5 Rxd5 43. Re1 $15) 41. Kxg3 {[%emt 0:01:31]} Rxd4 {[%emt 0:00:57][%mdl 4096] Endgame KRB-KRN} 42. Be2 {[%emt 0:02:13]} Ne4+ {[%emt 0:08:51]} 43. Kh3 {[%emt 0:04:00]} Rd2 {[%emt 0:00:27]} 44. Bc4 {[%emt 0:06:31]} f5 {[%emt 0:00:10]} 45. Be6 {[%emt 0:02:12]} Rd8 {[%emt 0:02:38] Dodges Bc8} 46. Rc1 {[%emt 0:01:53]} Rh8 {[%emt 0:07:47] ...Ng5+ is the strong threat.} ({Wrong is} 46... Rd3+ $2 47. Kg2 $19) 47. Bd7 {[%emt 0:05:09]} Nf6 {[%emt 0:00:41]} 48. Be6 {[%emt 0:00:20]} Re8 {[%emt 0:00:12]} 49. Bc4 {[%emt 0:00:29]} Re3+ {[%emt 0:00:04]} 50. Kg2 {[%emt 0:01:10]} Rxa3 {[%emt 0:00:05]} 51. Re1 {[%emt 0:00:27]} Ng4 {[%emt 0:03:17] Strongly threatening ...Ne3+. Black is clearly winning.} 52. Be6 {[%emt 0:01:27]} Re3 {[%emt 0:02:47]} 53. Rxe3 {[%emt 0:00:08]} (53. Kf1 $142 Rf3+ 54. Kg1) 53... Nxe3+ {[%emt 0:00:06] KB-KN} 54. Kf2 {[%emt 0:02:02]} Nc2 {[%emt 0:00:05]} 55. b5 {[%emt 0:01:08]} cxb5 {[%emt 0:04:29] ...a5 would be deadly.} 56. Bd5 {[%emt 0:00:06]} Nb4 {[%emt 0:00:22]} 57. Bxb7 {[%emt 0:00:44]} Nd3+ {[%emt 0:00:04]} 58. Ke3 {[%emt 0:00:04]} Nxc5 {[%emt 0:00:05] Weighted Error Value: White=0.58/Black=0.12 (very precise)} 0-1